bitfinex/quotes_BTCUSD_20251011
["timestamp","ask_amount","ask_price","bid_price","bid_amount"]
[1760226939318,4.65462959,111010.0,111000.0,4.09565872]
[1760226940131,4.26021363,111010.0,111000.0,4.09565872]
[1760226940495,1.06224463,111010.0,111000.0,4.09565872]
[1760226940908,4.26021363,111010.0,111000.0,4.09565872]
[1760226941101,4.8944576,111010.0,111000.0,3.90654439]
[1760226941325,1.72361216,111010.0,111000.0,3.90654439]
[1760226941489,4.92158116,111010.0,111000.0,3.90654439]
[1760226941699,4.33995634,111010.0,111000.0,4.08672457]
[1760226942105,4.67995634,111010.0,111000.0,4.08672457]
[1760226942508,1.48198734,111010.0,111000.0,4.08672457]
[1760226942746,4.67995634,111010.0,111000.0,4.08672457]
[1760226942957,4.68834936,111010.0,111000.0,4.08672457]
[1760226943571,1.49038036,111010.0,111000.0,4.08672457]
[1760226943835,4.68834936,111010.0,111000.0,4.08672457]
[1760226944122,1.49038036,111010.0,111000.0,4.08672457]
[1760226944328,4.68834936,111010.0,111000.0,4.08672457]
[1760226944725,1.49038036,111010.0,111000.0,4.08672457]
[1760226944926,5.38737051,111010.0,111000.0,3.87946874]
[1760226945146,5.38737051,111010.0,111000.0,3.85239309]
[1760226945349,5.38737051,111010.0,111000.0,3.82531744]
[1760226945544,5.38737051,111010.0,111000.0,3.79824179]
[1760226945780,5.38737051,111010.0,111000.0,3.7321093]
[1760226945992,5.39308224,111010.0,111000.0,3.70503365]
[1760226946192,5.41280192,111010.0,111000.0,3.677958]
[1760226946385,5.37944342,111010.0,111000.0,3.65088235]
[1760226946597,5.38044342,111010.0,111000.0,3.6238067]
[1760226946923,5.38044342,111010.0,111000.0,3.59673105]
[1760226947140,5.36560236,111010.0,111000.0,3.5696554]
[1760226947294,5.38144342,111010.0,111000.0,3.54257975]
[1760226947493,5.36560703,111010.0,111000.0,3.5155041]
[1760226947703,5.36460703,111010.0,111000.0,3.48842845]
[1760226947899,5.39396212,111010.0,111000.0,3.46134598]
[1760226948103,5.36560703,111010.0,111000.0,3.43426351]
[1760226948310,5.33336865,111010.0,111000.0,3.40718104]
[1760226948505,5.36172374,111010.0,111000.0,3.38009857]
[1760226948707,5.36172374,111010.0,111000.0,3.3530161]
[1760226948913,5.1815598,111010.0,111000.0,3.32593363]
[1760226949083,5.26800813,111010.0,111000.0,3.29885116]
[1760226949484,2.07003913,111010.0,111000.0,3.29885116]
[1760226949876,5.08784419,111010.0,111000.0,3.47903134]
[1760226950519,5.08784419,111010.0,111000.0,3.29885116]
[1760226950751,5.17656353,111010.0,111000.0,3.47903134]
[1760226951001,5.35672747,111010.0,111000.0,3.47903134]
[1760226951222,2.15875847,111010.0,111000.0,3.47903134]
[1760226951462,5.35672747,111010.0,111000.0,3.47903134]
[1760226951698,5.17656353,111010.0,111000.0,3.47903134]
[1760226951905,4.65151968,111010.0,111000.0,3.47903134]
[1760226952121,4.24124869,111010.0,111000.0,3.47903134]
[1760226952309,4.21412513,111010.0,111000.0,3.47903134]
[1760226952564,4.55412513,111010.0,111000.0,3.47903134]
[1760226953007,3.33439337,111010.0,111000.0,3.59128134]
[1760226953216,3.70695112,111010.0,111000.0,3.59128134]
[1760226953453,3.70595112,111010.0,111000.0,3.59128134]
[1760226953672,4.04695112,111010.0,111000.0,3.59128134]
[1760226954104,4.04595112,111010.0,111000.0,3.59128134]
[1760226954549,4.06610112,111010.0,111000.0,3.59128134]
[1760226955143,3.64449024,111010.0,111000.0,3.59128134]
[1760226955355,4.04595112,111010.0,111000.0,3.59128134]
[1760226956611,4.06610112,111010.0,111000.0,3.59128134]
[1760226956816,4.06614818,111010.0,111000.0,3.59128134]
[1760226958196,4.05775516,111010.0,111000.0,3.59128134]
[1760226958391,4.06984298,111010.0,111000.0,3.59128134]
[1760226959023,4.0940171,111010.0,111000.0,3.59128134]
[1760226959269,4.18273644,111010.0,111000.0,3.59128134]
[1760226959468,4.23950644,111010.0,111000.0,3.59128134]
[1760226959985,4.1507871,111010.0,111000.0,3.59128134]
[1760226960386,4.1507871,111010.0,111000.0,3.53962134]
[1760226960590,4.1507871,111010.0,111000.0,3.59128134]
[1760226961334,4.1507871,111010.0,111000.0,3.53962134]
[1760226961535,4.1507871,111010.0,111000.0,3.59128134]
[1760226961782,4.17166195,111010.0,111000.0,3.53962134]
[1760226962475,4.1507871,111010.0,111000.0,3.53962134]
[1760226962671,4.1173171,111010.0,111000.0,3.59363134]
[1760226962870,4.1512971,111010.0,111000.0,3.59363134]
[1760226963280,4.10293829,111010.0,111000.0,3.53962134]
[1760226964269,4.05390953,111010.0,111000.0,3.53962134]
[1760226964472,4.5685986,111010.0,111000.0,3.47903134]
[1760226965485,4.56859619,111010.0,111000.0,3.47903134]
[1760226965640,1.42477719,111010.0,111000.0,3.47903134]
[1760226965806,4.56859619,111010.0,111000.0,3.47903134]
[1760226966014,3.73731934,111010.0,111000.0,3.47903134]
[1760226966233,4.52343735,111010.0,111000.0,3.47903134]
[1760226966640,4.54023846,111010.0,111000.0,3.47903134]
[1760226966892,1.34226946,111010.0,111000.0,3.47903134]
[1760226967040,4.54023846,111010.0,111000.0,3.47903134]
[1760226967242,4.6289578,111010.0,111000.0,3.47903134]
[1760226968243,4.61215669,111010.0,111000.0,3.47903134]
[1760226969669,1.41418769,111010.0,111000.0,3.47903134]
[1760226969888,4.61215669,111010.0,111000.0,3.47903134]
[1760226970088,4.64051178,111010.0,111000.0,3.47903134]
[1760226970288,1.44254278,111010.0,111000.0,3.47903134]
[1760226970489,4.64051178,111010.0,111000.0,3.47903134]
[1760226971346,1.45934412,111010.0,111000.0,3.47903134]
[1760226971552,4.65731312,111010.0,111000.0,3.47903134]
[1760226971975,1.4757741,111010.0,111000.0,3.47903134]
[1760226972176,4.6737431,111010.0,111000.0,3.47903134]
[1760226972376,4.665344,111010.0,111000.0,3.47903134]
[1760226972685,4.666344,111010.0,111000.0,3.47903134]
[1760226973114,5.30211882,111010.0,111000.0,3.29885116]
[1760226973327,5.31051631,111010.0,111000.0,3.29885116]
[1760226973523,5.33763968,111010.0,111000.0,3.29885116]
[1760226973862,2.13967068,111010.0,111000.0,3.29885116]
[1760226973994,5.33663968,111010.0,111000.0,3.29885116]
[1760226974388,2.13027367,111010.0,111000.0,3.29885116]
[1760226974594,5.32824267,111010.0,111000.0,3.29885116]
[1760226974796,5.14807873,111010.0,111000.0,3.47903134]
[1760226975048,1.95010973,111010.0,111000.0,3.47903134]
[1760226975208,5.14807873,111010.0,111000.0,3.47903134]
[1760226975413,5.32924267,111010.0,111000.0,3.29885116]
[1760226975612,2.13127367,111010.0,111000.0,3.47903134]
[1760226975830,5.33023219,111010.0,111000.0,3.47903134]
[1760226976469,2.13226319,111010.0,111000.0,3.47903134]
[1760226976620,5.33023219,111010.0,111000.0,3.47903134]
[1760226976815,4.74860737,111010.0,111000.0,3.47903134]
[1760226978250,4.75700192,111010.0,111000.0,3.47903134]
[1760226981170,1.60739173,111010.0,111000.0,3.47903134]
[1760226981393,4.80536073,111010.0,111000.0,3.47903134]
[1760226981857,1.60739173,111010.0,111000.0,3.47903134]
[1760226982591,4.80536073,111010.0,111000.0,3.47903134]
[1760226982830,1.60739173,111010.0,111000.0,3.47903134]
[1760226983035,4.80536073,111010.0,111000.0,3.47903134]
[1760226983208,4.75700192,111010.0,111000.0,3.47903134]
[1760226983409,1.55903292,111010.0,111000.0,3.47903134]
[1760226983617,4.80536073,111010.0,111000.0,3.47903134]
[1760226983852,1.55903292,111010.0,111000.0,3.47903134]
[1760226984039,4.80536073,111010.0,111000.0,3.47903134]
[1760226984240,4.75700192,111010.0,111000.0,3.47903134]
[1760226984418,1.55903292,111010.0,111000.0,3.47903134]
[1760226984618,4.75700192,111010.0,111000.0,3.47903134]
[1760226985404,1.55903292,111010.0,111000.0,3.47903134]
[1760226985604,4.75700192,111010.0,111000.0,3.47903134]
[1760226986065,4.75701967,111010.0,111000.0,3.47903134]
[1760226989149,5.15848055,111010.0,111000.0,3.47903134]
[1760226989352,4.75701967,111010.0,111000.0,3.47903134]
[1760226989556,1.55905067,111010.0,111000.0,3.47903134]
[1760226989741,4.75701967,111010.0,111000.0,3.47903134]
[1760226990180,1.55905067,111010.0,111000.0,3.47903134]
[1760226990384,4.75701967,111010.0,111000.0,3.47903134]
[1760226993492,1.55905067,111010.0,111000.0,3.47903134]
[1760226993755,4.75701967,111010.0,111000.0,3.47903134]
[1760226994837,1.55905067,111010.0,111000.0,3.47903134]
[1760226995040,4.75701967,111010.0,111000.0,3.47903134]
[1760226995215,4.80537848,111010.0,111000.0,3.47903134]
[1760226996556,4.80537893,111010.0,111000.0,3.47903134]
[1760226997039,1.60740993,111010.0,111000.0,3.47903134]
[1760226997240,4.80537893,111010.0,111000.0,3.47903134]
[1760226997593,4.71619885,111010.0,111000.0,3.47903134]
[1760226999232,4.68396103,111010.0,111000.0,3.47903134]
[1760226999840,1.48599203,111010.0,111000.0,3.47903134]
[1760227000085,4.68396103,111010.0,111000.0,3.47903134]
[1760227000320,1.48599203,111010.0,111000.0,3.47903134]
[1760227000741,4.68396103,111010.0,111000.0,3.47903134]
[1760227003523,1.48599203,111010.0,111000.0,3.47903134]
[1760227003722,4.68396103,111010.0,111000.0,3.47903134]
[1760227004654,4.18289191,111010.0,111000.0,3.47903134]
[1760227004857,4.21523172,111010.0,111000.0,3.47903134]
[1760227005059,1.01726272,111010.0,111000.0,3.47903134]
[1760227005255,4.57210256,111010.0,111000.0,3.47903134]
[1760227005594,4.36510942,111010.0,111000.0,3.47903134]
[1760227005798,1.16714042,111010.0,111000.0,3.47903134]
[1760227005956,4.36610942,111010.0,111000.0,3.47903134]
[1760227007463,1.16814042,111010.0,111000.0,3.47903134]
[1760227007685,4.36610942,111010.0,111000.0,3.47903134]
[1760227007901,4.15106208,111010.0,111000.0,3.47903134]
[1760227008904,0.95309308,111010.0,111000.0,3.47903134]
[1760227009146,4.15106208,111010.0,111000.0,3.47903134]
[1760227009339,4.23978142,111010.0,111000.0,3.47903134]
[1760227009544,4.15106208,111010.0,111000.0,3.47903134]
[1760227009751,4.49106208,111010.0,111000.0,3.47903134]
[1760227011652,1.29309308,111010.0,111000.0,3.47903134]
[1760227011860,4.49106208,111010.0,111000.0,3.47903134]
[1760227012269,1.29309308,111010.0,111000.0,3.47903134]
[1760227012462,4.49106208,111010.0,111000.0,3.47903134]
[1760227013295,1.29309308,111010.0,111000.0,3.47903134]
[1760227013503,4.10994303,111010.0,111000.0,3.47903134]
[1760227013750,4.46681387,111010.0,111000.0,3.47903134]
[1760227014348,4.45841267,111010.0,111000.0,3.47903134]
[1760227015431,4.48266088,111010.0,111000.0,3.47903134]
[1760227015835,4.57138022,111010.0,111000.0,3.47903134]
[1760227016161,1.34916301,111010.0,111000.0,3.47903134]
[1760227016452,4.54713201,111010.0,111000.0,3.47903134]
[1760227017864,4.60372003,111010.0,111000.0,3.47903134]
[1760227018259,1.40575103,111010.0,111000.0,3.47903134]
[1760227018538,4.60372003,111010.0,111000.0,3.47903134]
[1760227018965,4.24684919,111010.0,111000.0,3.47903134]
[1760227019799,1.04888019,111010.0,111000.0,3.47903134]
[1760227020077,4.24684919,111010.0,111000.0,3.47903134]
[1760227020281,4.24687681,111010.0,111000.0,3.47903134]
[1760227020428,4.60374765,111010.0,111000.0,3.47903134]
[1760227020631,4.51502831,111010.0,111000.0,3.47903134]
[1760227021179,4.51502831,111010.0,111000.0,3.59058134]
[1760227021180,3.36327663,111010.0,111000.0,3.59058134]
[1760227021345,3.36327663,111010.0,111000.0,3.47903134]
[1760227021346,3.66306945,111010.0,111000.0,3.47903134]
[1760227021517,3.68425942,111010.0,111000.0,3.47903134]
[1760227021741,3.66562529,111010.0,111000.0,3.51338134]
[1760227021994,4.00462529,111010.0,111000.0,3.51338134]
[1760227023120,3.77799171,111010.0,111000.0,3.51338134]
[1760227024069,4.31355483,111010.0,111000.0,3.47903134]
[1760227024319,4.34236838,111010.0,111000.0,3.47903134]
[1760227024753,4.38024838,111010.0,111000.0,3.47903134]
[1760227025368,4.38124838,111010.0,111000.0,3.47903134]
[1760227025519,1.35300338,111010.0,111000.0,3.47903134]
[1760227025722,4.32709838,111010.0,111000.0,3.47903134]
[1760227025921,4.23837904,111010.0,111000.0,3.47903134]
[1760227028270,1.21013404,111010.0,111000.0,3.47903134]
[1760227028472,4.23837904,111010.0,111000.0,3.47903134]
[1760227028971,1.21013404,111010.0,111000.0,3.47903134]
[1760227029191,4.20956521,111010.0,111000.0,3.47903134]
[1760227031375,1.18132021,111010.0,111000.0,3.47903134]
[1760227031574,4.20956521,111010.0,111000.0,3.47903134]
[1760227032411,1.18132021,111010.0,111000.0,3.47903134]
[1760227032613,4.20956521,111010.0,111000.0,3.47903134]
[1760227033222,4.23381342,111010.0,111000.0,3.47903134]
[1760227034443,3.87694258,111010.0,111000.0,3.47903134]
[1760227034663,0.84869758,111010.0,111000.0,3.47903134]
[1760227034884,3.87694258,111010.0,111000.0,3.47903134]
[1760227035495,0.84869758,111010.0,111000.0,3.47903134]
[1760227035686,3.93109258,111010.0,111000.0,3.47903134]
[1760227035889,0.90284758,111010.0,111000.0,3.47903134]
[1760227036069,3.93109258,111010.0,111000.0,3.47903134]
[1760227037391,0.90284758,111010.0,111000.0,3.47903134]
[1760227037585,3.93109258,111010.0,111000.0,3.47903134]
[1760227039017,0.90284758,111010.0,111000.0,3.47903134]
[1760227039340,3.93109258,111010.0,111000.0,3.47903134]
[1760227041844,0.90284758,111010.0,111000.0,3.47903134]
[1760227042043,3.93109258,111010.0,111000.0,3.47903134]
[1760227044872,0.90284758,111010.0,111000.0,3.47903134]
[1760227045075,3.93109258,111010.0,111000.0,3.47903134]
[1760227045460,0.90284758,111010.0,111000.0,3.47903134]
[1760227045881,3.93109258,111010.0,111000.0,3.47903134]
[1760227046549,0.90284758,111010.0,111000.0,3.47903134]
[1760227047148,3.93109258,111010.0,111000.0,3.47903134]
[1760227047302,0.90284758,111010.0,111000.0,3.47903134]
[1760227047501,3.93109258,111010.0,111000.0,3.47903134]
[1760227047703,0.90284758,111010.0,111000.0,3.47903134]
[1760227048028,3.93109258,111010.0,111000.0,3.47903134]
[1760227049957,0.90284758,111010.0,111000.0,3.47903134]
[1760227050258,3.93109258,111010.0,111000.0,3.47903134]
[1760227052064,3.57422174,111010.0,111000.0,3.47903134]
[1760227052265,0.90284758,111010.0,111000.0,3.47903134]
[1760227052564,3.93109258,111010.0,111000.0,3.47903134]
[1760227052995,0.90284758,111010.0,111000.0,3.47903134]
[1760227053167,3.93109258,111010.0,111000.0,3.47903134]
[1760227053577,0.90284758,111010.0,111000.0,3.47903134]
[1760227053820,3.93109258,111010.0,111000.0,3.47903134]
[1760227054359,1.25971842,111010.0,111000.0,3.47903134]
[1760227054784,4.28796342,111010.0,111000.0,3.47903134]
[1760227056017,1.25971842,111010.0,111000.0,3.47903134]
[1760227056219,4.09977115,111010.0,111000.0,3.47903134]
[1760227056630,1.07152615,111010.0,111000.0,3.47903134]
[1760227056755,4.09977115,111010.0,111000.0,3.47903134]
[1760227058206,4.06189115,111010.0,111000.0,3.47903134]
[1760227059685,4.15100667,111010.0,111000.0,3.47903134]
[1760227059892,1.12276167,111010.0,111000.0,3.47903134]
[1760227060320,4.15100667,111010.0,111000.0,3.47903134]
[1760227061066,1.12276167,111010.0,111000.0,3.47903134]
[1760227061279,4.15100667,111010.0,111000.0,3.47903134]
[1760227061483,1.12276167,111010.0,111000.0,3.47903134]
[1760227061725,4.15100667,111010.0,111000.0,3.47903134]
[1760227062518,1.12276167,111010.0,111000.0,3.47903134]
[1760227062719,4.15100667,111010.0,111000.0,3.47903134]
[1760227063338,1.12276167,111010.0,111000.0,3.47903134]
[1760227063676,4.15100667,111010.0,111000.0,3.47903134]
[1760227063852,1.12276167,111010.0,111000.0,3.47903134]
[1760227064060,4.15100667,111010.0,111000.0,3.47903134]
[1760227065407,4.91264235,111010.0,111000.0,3.29885116]
[1760227065679,6.17004141,111010.0,111000.0,2.62228981]
[1760227065884,4.96575561,111010.0,111000.0,2.56796523]
[1760227066026,4.97046746,111010.0,111000.0,2.48481289]
[1760227066229,4.96946746,111010.0,111000.0,2.48481289]
[1760227066431,1.94222246,111010.0,111000.0,2.48481289]
[1760227066856,1.95031406,111010.0,111000.0,2.48481289]
[1760227067070,4.97855906,111010.0,111000.0,2.48481289]
[1760227067480,4.97755906,111010.0,111000.0,2.48481289]
[1760227067697,6.18284486,111010.0,111000.0,1.78700612]
[1760227067843,6.19841399,111010.0,111000.0,1.75993081]
[1760227068039,6.20682967,111010.0,111000.0,1.7328555]
[1760227068245,6.20882967,111010.0,111000.0,1.70578019]
[1760227068456,6.22296237,111010.0,111000.0,1.67870488]
[1760227068679,5.01867657,111010.0,111000.0,1.65162957]
[1760227068878,5.01867657,111010.0,111000.0,1.62455426]
[1760227069098,1.99043157,111010.0,111000.0,1.59747895]
[1760227069448,4.78974476,111010.0,111000.0,1.57040364]
[1760227069659,4.79174476,111010.0,111000.0,1.54332833]
[1760227069832,1.76349976,111010.0,111000.0,1.51625302]
[1760227070050,4.79174476,111010.0,111000.0,1.48917771]
[1760227070275,4.79174476,111010.0,111000.0,1.46209351]
[1760227070483,4.75940495,111010.0,111000.0,1.43500931]
[1760227070640,4.00366495,111010.0,111000.0,1.61518949]
[1760227070846,4.57112479,111010.0,111000.0,1.61518949]
[1760227071053,4.42111275,111010.0,111000.0,1.61518949]
[1760227071445,4.76111275,111010.0,111000.0,1.61518949]
[1760227071637,4.84783209,111010.0,111000.0,1.61518949]
[1760227071861,1.81858709,111010.0,111000.0,1.61518949]
[1760227072119,4.84883209,111010.0,111000.0,1.61518949]
[1760227072330,5.02898122,111010.0,111000.0,1.61518949]
[1760227072732,4.84681728,111010.0,111000.0,1.61518949]
[1760227073027,4.84781728,111010.0,111000.0,1.61518949]
[1760227073721,4.44638868,111010.0,111000.0,1.61518949]
[1760227073928,1.41814368,111010.0,111000.0,1.61518949]
[1760227074311,4.62655262,111010.0,111000.0,1.61518949]
[1760227074468,4.62655262,111010.0,111000.0,1.43500931]
[1760227074673,4.65232533,111010.0,111000.0,1.43500931]
[1760227075399,1.62408033,111010.0,111000.0,1.43500931]
[1760227075620,4.47216139,111010.0,111000.0,1.61518949]
[1760227076050,4.65232533,111010.0,111000.0,1.61518949]
[1760227076745,1.62408033,111010.0,111000.0,1.61518949]
[1760227077068,4.65232533,111010.0,111000.0,1.43500931]
[1760227077450,4.65232143,111010.0,111000.0,1.43500931]
[1760227078014,1.62407643,111010.0,111000.0,1.43500931]
[1760227078297,4.65232143,111010.0,111000.0,1.43500931]
[1760227078464,1.62407643,111010.0,111000.0,1.43500931]
[1760227078793,4.65232143,111010.0,111000.0,1.43500931]
[1760227078904,1.62407643,111010.0,111000.0,1.43500931]
[1760227079114,4.65232143,111010.0,111000.0,1.43500931]
[1760227079606,4.68466124,111010.0,111000.0,1.43500931]
[1760227079772,1.65641624,111010.0,111000.0,1.43500931]
[1760227079979,4.66045793,111010.0,111000.0,1.43500931]
[1760227080380,4.70881674,111010.0,111000.0,1.43500931]
[1760227081286,4.70877277,111010.0,111000.0,1.43500931]
[1760227081486,1.68052777,111010.0,111000.0,1.43500931]
[1760227081689,4.73232627,111010.0,111000.0,1.43500931]
[1760227081868,4.7590691,111010.0,111000.0,1.43500931]
[1760227082872,4.73232627,111010.0,111000.0,1.43500931]
[1760227083082,1.70408127,111010.0,111000.0,1.43500931]
[1760227083528,4.56947541,111010.0,111000.0,1.61518949]
[1760227083852,4.59524812,111010.0,111000.0,1.61518949]
[1760227084092,1.56700312,111010.0,111000.0,1.61518949]
[1760227084319,4.59524812,111010.0,111000.0,1.61518949]
[1760227084518,4.59424812,111010.0,111000.0,1.61518949]
[1760227084653,4.68296746,111010.0,111000.0,1.61518949]
[1760227084854,4.68196746,111010.0,111000.0,1.61518949]
[1760227085045,4.68296746,111010.0,111000.0,1.61518949]
[1760227085390,1.65572246,111010.0,111000.0,1.61518949]
[1760227085691,4.68396746,111010.0,111000.0,1.61518949]
[1760227086096,4.67557785,111010.0,111000.0,1.43500931]
[1760227086273,4.68397587,111010.0,111000.0,1.43500931]
[1760227086473,4.68397587,111010.0,111000.0,1.61518949]
[1760227087361,4.7107187,111010.0,111000.0,1.61518949]
[1760227087555,1.6824737,111010.0,111000.0,1.61518949]
[1760227087756,4.7107187,111010.0,111000.0,1.61518949]
[1760227088388,4.53055476,111010.0,111000.0,1.61518949]
[1760227088590,4.50381193,111010.0,111000.0,1.61518949]
[1760227088959,4.7107187,111010.0,111000.0,1.43500931]
[1760227089154,4.75907751,111010.0,111000.0,1.43500931]
[1760227089378,1.73083251,111010.0,111000.0,1.43500931]
[1760227089581,4.75907751,111010.0,111000.0,1.43500931]
[1760227089962,4.75707751,111010.0,111000.0,1.43500931]
[1760227090206,4.75807751,111010.0,111000.0,1.43500931]
[1760227090434,1.73083251,111010.0,111000.0,1.43500931]
[1760227090578,4.75907751,111010.0,111000.0,1.43500931]
[1760227091495,1.73083251,111010.0,111000.0,1.43500931]
[1760227091697,4.75907751,111010.0,111000.0,1.43500931]
[1760227092098,4.7267377,111010.0,111000.0,1.43500931]
[1760227092358,1.6984927,111010.0,111000.0,1.43500931]
[1760227092648,4.7267377,111010.0,111000.0,1.43500931]
[1760227092866,1.6984927,111010.0,111000.0,1.43500931]
[1760227092993,4.7267377,111010.0,111000.0,1.43500931]
[1760227093193,1.6984927,111010.0,111000.0,1.43500931]
[1760227093403,4.7267377,111010.0,111000.0,1.43500931]
[1760227094028,2.0999213,111010.0,111000.0,1.43500931]
[1760227094199,5.1281663,111010.0,111000.0,1.43500931]
[1760227095340,5.07980749,111010.0,111000.0,1.43500931]
[1760227095535,4.67837889,111010.0,111000.0,1.43500931]
[1760227096269,1.65013389,111010.0,111000.0,1.43500931]
[1760227096472,4.67837889,111010.0,111000.0,1.43500931]
[1760227097580,1.65013389,111010.0,111000.0,1.43500931]
[1760227097798,4.67837889,111010.0,111000.0,1.43500931]
[1760227099532,1.65013389,111010.0,111000.0,1.43500931]
[1760227099775,4.67837889,111010.0,111000.0,1.43500931]
[1760227100940,1.65013389,111010.0,111000.0,1.43500931]
[1760227101151,4.67837889,111010.0,111000.0,1.43500931]
[1760227101734,1.6501624,111010.0,111000.0,1.43500931]
[1760227101940,4.6784074,111010.0,111000.0,1.43500931]
[1760227102059,4.69782352,111010.0,111000.0,1.43500931]
[1760227102968,1.66957852,111010.0,111000.0,1.43500931]
[1760227103215,4.69782352,111010.0,111000.0,1.43500931]
[1760227104289,1.66957852,111010.0,111000.0,1.43500931]
[1760227104495,4.69782352,111010.0,111000.0,1.43500931]
[1760227106072,1.66957852,111010.0,111000.0,1.43500931]
[1760227106284,4.73574352,111010.0,111000.0,1.43500931]
[1760227106815,1.70756008,111010.0,111000.0,1.43500931]
[1760227107012,4.73580508,111010.0,111000.0,1.43500931]
[1760227107619,1.70756008,111010.0,111000.0,1.43500931]
[1760227107841,4.73580508,111010.0,111000.0,1.43500931]
[1760227109459,4.60419365,111010.0,111000.0,1.61518949]
[1760227109827,1.52343311,111010.0,111000.0,1.61518949]
[1760227110242,4.55167811,111010.0,111000.0,1.61518949]
[1760227110481,4.73184205,111010.0,111000.0,1.61518949]
[1760227110683,1.70359705,111010.0,111000.0,1.61518949]
[1760227110849,4.46295877,111010.0,111000.0,1.61518949]
[1760227111050,3.54753432,111010.0,111000.0,1.61518949]
[1760227111302,3.93521204,111010.0,111000.0,1.61518949]
[1760227111674,0.90696704,111010.0,111000.0,1.61518949]
[1760227111876,3.88565953,111010.0,111000.0,1.61518949]
[1760227112208,4.37580747,111010.0,111000.0,1.61518949]
[1760227112430,4.37680747,111010.0,111000.0,1.61518949]
[1760227112635,1.34656247,111010.0,111000.0,1.61518949]
[1760227112917,4.28708813,111010.0,111000.0,1.61518949]
[1760227113691,1.25884313,111010.0,111000.0,1.61518949]
[1760227113895,4.28708813,111010.0,111000.0,1.61518949]
[1760227114591,4.278964,111010.0,111000.0,1.61518949]
[1760227115124,4.2787948,111010.0,111000.0,1.61518949]
[1760227115287,4.36751414,111010.0,111000.0,1.61518949]
[1760227115489,3.91455326,111010.0,111000.0,1.61518949]
[1760227116500,0.88630826,111010.0,111000.0,1.61518949]
[1760227116630,3.91455326,111010.0,111000.0,1.61518949]
[1760227117494,4.25455326,111010.0,111000.0,1.61518949]
[1760227118255,4.24612673,111010.0,111000.0,1.61518949]
[1760227118455,1.21788173,111010.0,111000.0,1.61518949]
[1760227118662,4.33484607,111010.0,111000.0,1.61518949]
[1760227119540,1.30660107,111010.0,111000.0,1.61518949]
[1760227119824,4.33484607,111010.0,111000.0,1.61518949]
[1760227120206,4.31798846,111010.0,111000.0,1.61518949]
[1760227120808,1.34389346,111010.0,111000.0,1.61518949]
[1760227121016,4.37213846,111010.0,111000.0,1.61518949]
[1760227121580,3.92622803,111010.0,111000.0,1.61518949]
[1760227122100,0.89798303,111010.0,111000.0,1.61518949]
[1760227122293,3.92622803,111010.0,111000.0,1.61518949]
[1760227123144,0.89798303,111010.0,111000.0,1.61518949]
[1760227123348,3.92622803,111010.0,111000.0,1.61518949]
[1760227123712,0.89798303,111010.0,111000.0,1.61518949]
[1760227123903,3.92622803,111010.0,111000.0,1.61518949]
[1760227125058,0.89798303,111010.0,111000.0,1.61518949]
[1760227125448,3.92622803,111010.0,111000.0,1.61518949]
[1760227126333,0.89798303,111010.0,111000.0,1.61518949]
[1760227126527,3.92622803,111010.0,111000.0,1.61518949]
[1760227126768,0.89798303,111010.0,111000.0,1.61518949]
[1760227126973,3.92622803,111010.0,111000.0,1.61518949]
[1760227127374,0.89798303,111010.0,111000.0,1.61518949]
[1760227127591,3.92622803,111010.0,111000.0,1.61518949]
[1760227128315,0.89798303,111010.0,111000.0,1.61518949]
[1760227128523,3.92622803,111010.0,111000.0,1.61518949]
[1760227129408,3.94304224,111010.0,111000.0,1.61518949]
[1760227131180,0.91479724,111010.0,111000.0,1.61518949]
[1760227131373,3.94304224,111010.0,111000.0,1.61518949]
[1760227131786,0.91479724,111010.0,111000.0,1.61518949]
[1760227131994,3.94304224,111010.0,111000.0,1.61518949]
[1760227132204,3.95145496,111010.0,111000.0,1.61518949]
[1760227132586,0.92320996,111010.0,111000.0,1.61518949]
[1760227132939,3.95145496,111010.0,111000.0,1.61518949]
[1760227133772,3.97817087,111010.0,111000.0,1.61518949]
[1760227134806,0.94992587,111010.0,111000.0,1.61518949]
[1760227135030,3.97817087,111010.0,111000.0,1.61518949]
[1760227135423,0.97416741,111010.0,111000.0,1.61518949]
[1760227135624,4.00241241,111010.0,111000.0,1.61518949]
[1760227136454,0.97416741,111010.0,111000.0,1.61518949]
[1760227136584,4.00241241,111010.0,111000.0,1.61518949]
[1760227136785,0.97416741,111010.0,111000.0,1.61518949]
[1760227137007,4.00241241,111010.0,111000.0,1.61518949]
[1760227137209,3.91369307,111010.0,111000.0,1.61518949]
[1760227137417,0.88544807,111010.0,111000.0,1.61518949]
[1760227137824,3.91369307,111010.0,111000.0,1.61518949]
[1760227138025,0.88544807,111010.0,111000.0,1.61518949]
[1760227138182,3.91369307,111010.0,111000.0,1.61518949]
[1760227138384,4.00241241,111010.0,111000.0,1.61518949]
[1760227138908,0.97416741,111010.0,111000.0,1.61518949]
[1760227139112,4.00241241,111010.0,111000.0,1.61518949]
[1760227139432,0.97416436,111010.0,111000.0,1.61518949]
[1760227139610,4.00240936,111010.0,111000.0,1.61518949]
[1760227140938,0.97416436,111010.0,111000.0,1.61518949]
[1760227141139,3.91369002,111010.0,111000.0,1.61518949]
[1760227141286,3.89687581,111010.0,111000.0,1.61518949]
[1760227141514,3.913733,111010.0,111000.0,1.61518949]
[1760227143618,0.885488,111010.0,111000.0,1.61518949]
[1760227143821,4.00245234,111010.0,111000.0,1.61518949]
[1760227144220,4.41734136,111010.0,111000.0,1.61518949]
[1760227144442,4.03631123,111010.0,111000.0,1.61518949]
[1760227144973,4.03531123,111010.0,111000.0,1.61518949]
[1760227145349,4.03631123,111010.0,111000.0,1.61518949]
[1760227145796,4.03731123,111010.0,111000.0,1.61518949]
[1760227145997,4.3940888,111010.0,111000.0,1.61518949]
[1760227146237,1.3658438,111010.0,111000.0,1.61518949]
[1760227146405,4.3940888,111010.0,111000.0,1.61518949]
[1760227147022,1.3658438,111010.0,111000.0,1.61518949]
[1760227147344,4.3940888,111010.0,111000.0,1.61518949]
[1760227148651,1.3658438,111010.0,111000.0,1.61518949]
[1760227148903,4.3940888,111010.0,111000.0,1.61518949]
[1760227149327,4.3940888,111010.0,111000.0,1.43500931]
[1760227149328,4.60440464,111010.0,111000.0,1.43500931]
[1760227149535,4.6315306,111010.0,111000.0,1.43500931]
[1760227149947,1.61947244,111010.0,111000.0,1.43500931]
[1760227150147,4.64771744,111010.0,111000.0,1.43500931]
[1760227150368,4.68008801,111010.0,111000.0,1.43500931]
[1760227150583,4.6612471,111010.0,111000.0,1.40793139]
[1760227150794,4.6612471,111010.0,111000.0,1.38085347]
[1760227151009,4.67642904,111010.0,111000.0,1.35377555]
[1760227151199,4.67542999,111010.0,111000.0,1.32669763]
[1760227151438,4.77742998,111010.0,111000.0,1.27254179]
[1760227151626,1.74918498,111010.0,111000.0,1.24546387]
[1760227151854,4.67742999,111010.0,111000.0,1.21838595]
[1760227152042,4.77642998,111010.0,111000.0,1.19130803]
[1760227152256,4.77542998,111010.0,111000.0,1.16423011]
[1760227152472,4.77942998,111010.0,111000.0,1.13715219]
[1760227152696,1.73178293,111010.0,111000.0,1.11007427]
[1760227152908,4.66320973,111010.0,111000.0,1.08299635]
[1760227153129,4.71176224,111010.0,111000.0,1.05591843]
[1760227153347,4.76320972,111010.0,111000.0,1.02883503]
[1760227153572,4.76320972,111010.0,111000.0,1.00175163]